[Event "*** SCC Grand Prix: Titled Tuesday Blitz"]
[Site "Chess.com"]
[Date "2020.09.29"]
[Round "9"]
[White "KacperPolOK"]
[Black "jacky72"]
[Result "1-0"]
[WhiteElo "2399"]
[BlackElo "2570"]
[TimeControl "180+1"]
[EndTime "11:47:45 PDT"]
[Termination "KacperPolOK won by checkmate"]

1. e4 {[%clk 0:03:00.1]} 1... e5 {[%clk 0:02:59.9]} 2. Nf3 {[%clk 0:02:59.3]}
2... Nc6 {[%clk 0:03:00.8]} 3. Bb5 {[%clk 0:02:59.6]} 3... a6 {[%clk 0:03:01.2]}
4. Ba4 {[%clk 0:02:59.7]} 4... Nf6 {[%clk 0:03:01.7]} 5. Qe2 {[%clk 0:02:59.5]}
5... b5 {[%clk 0:03:01.2]} 6. Bb3 {[%clk 0:02:59.6]} 6... Be7 {[%clk 0:03:01.9]}
7. c3 {[%clk 0:02:58.7]} 7... d6 {[%clk 0:03:02.2]} 8. O-O {[%clk 0:02:59.1]}
8... Bg4 {[%clk 0:03:01.2]} 9. h3 {[%clk 0:02:59]} 9... Bh5 {[%clk 0:03:00.9]}
10. Rd1 {[%clk 0:02:59.5]} 10... O-O {[%clk 0:02:59.4]} 11. d3 {[%clk
0:02:58.3]} 11... Na5 {[%clk 0:02:56.9]} 12. Bc2 {[%clk 0:02:58.3]} 12... c5
{[%clk 0:02:57.4]} 13. Nbd2 {[%clk 0:02:57.8]} 13... Nd7 {[%clk 0:02:52.8]} 14.
g4 {[%clk 0:02:57.3]} 14... Bg6 {[%clk 0:02:52.5]} 15. Nf1 {[%clk 0:02:58]}
15... Nc6 {[%clk 0:02:46.5]} 16. Ng3 {[%clk 0:02:57.1]} 16... Re8 {[%clk
0:02:46.3]} 17. Kh2 {[%clk 0:02:54.8]} 17... Bf8 {[%clk 0:02:41.8]} 18. h4
{[%clk 0:02:49.2]} 18... h6 {[%clk 0:02:41.5]} 19. h5 {[%clk 0:02:45.8]} 19...
Bh7 {[%clk 0:02:41.4]} 20. g5 {[%clk 0:02:46.4]} 20... Kh8 {[%clk 0:02:33.6]}
21. Rg1 {[%clk 0:02:45.7]} 21... Nb6 {[%clk 0:02:30.1]} 22. Nf5 {[%clk
0:02:36.2]} 22... Bxf5 {[%clk 0:02:25.3]} 23. exf5 {[%clk 0:02:35.8]} 23... d5
{[%clk 0:02:26.2]} 24. f6 {[%clk 0:02:26.9]} 24... e4 {[%clk 0:02:25.8]} 25. Nh4
{[%clk 0:02:01.1]} 25... Qd6+ {[%clk 0:02:19.1]} 26. Kh1 {[%clk 0:01:57.6]}
26... Re5 {[%clk 0:02:16]} 27. d4 {[%clk 0:01:41.2]} 27... cxd4 {[%clk
0:02:15.3]} 28. f4 {[%clk 0:01:41.5]} 28... Ree8 {[%clk 0:02:04.6]} 29. Nf5
{[%clk 0:01:33.7]} 29... Qe6 {[%clk 0:01:53.8]} 30. Nxd4 {[%clk 0:01:01.5]}
30... Nxd4 {[%clk 0:01:49.6]} 31. cxd4 {[%clk 0:01:01.9]} 31... Rac8 {[%clk
0:01:43.7]} 32. Bb3 {[%clk 0:01:01.9]} 32... Nc4 {[%clk 0:01:39.4]} 33. Qg2
{[%clk 0:00:57.4]} 33... Qf5 {[%clk 0:01:24.7]} 34. Bxc4 {[%clk 0:00:34.3]}
34... Rxc4 {[%clk 0:01:23.7]} 35. Be3 {[%clk 0:00:35]} 35... gxf6 {[%clk
0:01:20]} 36. gxf6 {[%clk 0:00:17.7]} 36... Qxh5+ {[%clk 0:01:18.1]} 37. Qh2
{[%clk 0:00:18.2]} 37... Qxh2+ {[%clk 0:01:14.9]} 38. Kxh2 {[%clk 0:00:18.3]}
38... Rc2+ {[%clk 0:01:15]} 39. Rg2 {[%clk 0:00:17.9]} 39... Rec8 {[%clk
0:01:15.5]} 40. Rg1 {[%clk 0:00:17.1]} 40... Bd6 {[%clk 0:01:11.4]} 41. Kh3
{[%clk 0:00:16.8]} 41... Rxg2 {[%clk 0:01:11.8]} 42. Rxg2 {[%clk 0:00:17.7]}
42... Bf8 {[%clk 0:01:08.3]} 43. Kg4 {[%clk 0:00:17.7]} 43... Rc6 {[%clk
0:01:03.3]} 44. Kf5 {[%clk 0:00:17.6]} 44... Kh7 {[%clk 0:01:03.8]} 45. Ke5
{[%clk 0:00:16.6]} 45... Rd6 {[%clk 0:01:01]} 46. f5 {[%clk 0:00:15.8]} 46...
Rc6 {[%clk 0:00:59.3]} 47. Kxd5 {[%clk 0:00:15.5]} 47... Rxf6 {[%clk 0:00:59.1]}
48. Kxe4 {[%clk 0:00:15.5]} 48... Rc6 {[%clk 0:00:56.7]} 49. Bf4 {[%clk
0:00:14.7]} 49... Bg7 {[%clk 0:00:48.8]} 50. b3 {[%clk 0:00:13.8]} 50... Rc8
{[%clk 0:00:45.1]} 51. Be5 {[%clk 0:00:14]} 51... f6 {[%clk 0:00:41]} 52. Bd6
{[%clk 0:00:12.2]} 52... h5 {[%clk 0:00:40]} 53. Rh2 {[%clk 0:00:11]} 53... Kg8
{[%clk 0:00:40.3]} 54. Rxh5 {[%clk 0:00:10.4]} 54... Kf7 {[%clk 0:00:41.2]} 55.
Rh2 {[%clk 0:00:10.4]} 55... Rd8 {[%clk 0:00:38.2]} 56. Bc5 {[%clk 0:00:09.9]}
56... Re8+ {[%clk 0:00:34.8]} 57. Kd3 {[%clk 0:00:09.5]} 57... Re1 {[%clk
0:00:35.7]} 58. d5 {[%clk 0:00:07]} 58... Rf1 {[%clk 0:00:35.1]} 59. Ke4 {[%clk
0:00:05.7]} 59... Re1+ {[%clk 0:00:31.1]} 60. Kf4 {[%clk 0:00:06.1]} 60... Rd1
{[%clk 0:00:28.4]} 61. d6 {[%clk 0:00:06.3]} 61... Bf8 {[%clk 0:00:25.9]} 62. b4
{[%clk 0:00:06.7]} 62... Bxd6+ {[%clk 0:00:23]} 63. Bxd6 {[%clk 0:00:06.7]}
63... Rxd6 {[%clk 0:00:23.7]} 64. Rh7+ {[%clk 0:00:07.6]} 64... Ke8 {[%clk
0:00:24.1]} 65. Ke4 {[%clk 0:00:08.2]} 65... Kd8 {[%clk 0:00:20.4]} 66. Ra7
{[%clk 0:00:07.4]} 66... Kc8 {[%clk 0:00:20.9]} 67. a3 {[%clk 0:00:07.7]} 67...
Kd8 {[%clk 0:00:21]} 68. Rb7 {[%clk 0:00:07.3]} 68... Kc8 {[%clk 0:00:20.9]} 69.
Ra7 {[%clk 0:00:07.8]} 69... Kb8 {[%clk 0:00:19.9]} 70. Rf7 {[%clk 0:00:08.4]}
70... Kc8 {[%clk 0:00:20.8]} 71. Rg7 {[%clk 0:00:08.9]} 71... Kd8 {[%clk
0:00:20.9]} 72. Ra7 {[%clk 0:00:09.5]} 72... Rc6 {[%clk 0:00:21.1]} 73. Rb7
{[%clk 0:00:09.3]} 73... Kc8 {[%clk 0:00:21]} 74. Rf7 {[%clk 0:00:09]} 74... Kd8
{[%clk 0:00:20.6]} 75. Kd5 {[%clk 0:00:09.4]} 75... Rc3 {[%clk 0:00:18.6]} 76.
Rxf6 {[%clk 0:00:09.4]} 76... Rxa3 {[%clk 0:00:19.1]} 77. Kc6 {[%clk 0:00:09.6]}
77... Ke7 {[%clk 0:00:18.9]} 78. Rh6 {[%clk 0:00:09.8]} 78... Rb3 {[%clk
0:00:18.2]} 79. Kc5 {[%clk 0:00:10]} 79... Rc3+ {[%clk 0:00:16.1]} 80. Kb6
{[%clk 0:00:10.4]} 80... Rc4 {[%clk 0:00:16.2]} 81. Ka5 {[%clk 0:00:10.7]} 81...
Rf4 {[%clk 0:00:15.5]} 82. Kxa6 {[%clk 0:00:08.1]} 82... Rxb4 {[%clk 0:00:14.9]}
83. Rb6 {[%clk 0:00:08.6]} 83... Rb1 {[%clk 0:00:12.9]} 84. Rxb5 {[%clk
0:00:08.4]} 84... Ra1+ {[%clk 0:00:13.4]} 85. Kb6 {[%clk 0:00:08.5]} 85... Kf6
{[%clk 0:00:13.8]} 86. Kc6 {[%clk 0:00:08.4]} 86... Rc1+ {[%clk 0:00:14.1]} 87.
Kb6 {[%clk 0:00:08.8]} 87... Rc8 {[%clk 0:00:14.3]} 88. Ka5 {[%clk 0:00:08.6]}
88... Rc4 {[%clk 0:00:13.9]} 89. Kb6 {[%clk 0:00:08.4]} 89... Rc3 {[%clk
0:00:14.2]} 90. Rc5 {[%clk 0:00:08.7]} 90... Rd3 {[%clk 0:00:15.1]} 91. Kc6
{[%clk 0:00:09]} 91... Re3 {[%clk 0:00:15.6]} 92. Rd5 {[%clk 0:00:09.3]} 92...
Rf3 {[%clk 0:00:16.5]} 93. Kd6 {[%clk 0:00:09.8]} 93... Re3 {[%clk 0:00:16.8]}
94. Kc6 {[%clk 0:00:09.8]} 94... Re8 {[%clk 0:00:16.9]} 95. Kc5 {[%clk
0:00:10.2]} 95... Rh8 {[%clk 0:00:17.3]} 96. Kd4 {[%clk 0:00:10.4]} 96... Rh1
{[%clk 0:00:17.5]} 97. Ke3 {[%clk 0:00:10.7]} 97... Re1+ {[%clk 0:00:18.4]} 98.
Kf4 {[%clk 0:00:11.2]} 98... Re8 {[%clk 0:00:19.3]} 99. Ra5 {[%clk 0:00:11]}
99... Rb8 {[%clk 0:00:18.5]} 100. Ra6+ {[%clk 0:00:11.4]} 100... Kf7 {[%clk
0:00:19.4]} 101. Kg5 {[%clk 0:00:11.8]} 101... Rb1 {[%clk 0:00:20.3]} 102. Ra7+
{[%clk 0:00:12.3]} 102... Kf8 {[%clk 0:00:20.8]} 103. Kg6 {[%clk 0:00:12.8]}
103... Rg1+ {[%clk 0:00:19.4]} 104. Kf6 {[%clk 0:00:12.8]} 104... Kg8 {[%clk
0:00:20.3]} 105. Ra8+ {[%clk 0:00:13.1]} 105... Kh7 {[%clk 0:00:20.4]} 106. Kf7
{[%clk 0:00:13.6]} 106... Rb1 {[%clk 0:00:20.5]} 107. Rd8 {[%clk 0:00:13.7]}
107... Rb7+ {[%clk 0:00:20.2]} 108. Ke6 {[%clk 0:00:14]} 108... Rb6+ {[%clk
0:00:17.4]} 109. Rd6 {[%clk 0:00:13.7]} 109... Rb1 {[%clk 0:00:17.6]} 110. f6
{[%clk 0:00:14]} 110... Re1+ {[%clk 0:00:17.5]} 111. Kf7 {[%clk 0:00:14.4]}
111... Ra1 {[%clk 0:00:17.7]} 112. Rd7 {[%clk 0:00:14.7]} 112... Re1 {[%clk
0:00:14.7]} 113. Rb7 {[%clk 0:00:14.1]} 113... Re2 {[%clk 0:00:14.2]} 114. Rb4
{[%clk 0:00:14.1]} 114... Kh6 {[%clk 0:00:13.9]} 115. Kf8 {[%clk 0:00:12.7]}
115... Ra2 {[%clk 0:00:12.3]} 116. Rb8 {[%clk 0:00:12.1]} 116... Kh7 {[%clk
0:00:06.6]} 117. f7 {[%clk 0:00:11.8]} 117... Re2 {[%clk 0:00:05.1]} 118. Rd8
{[%clk 0:00:11.7]} 118... Re1 {[%clk 0:00:04.7]} 119. Rd7 {[%clk 0:00:12]}
119... Ra1 {[%clk 0:00:03.5]} 120. Ke8 {[%clk 0:00:11.7]} 120... Ra8+ {[%clk
0:00:02.5]} 121. Rd8 {[%clk 0:00:12]} 121... Rxd8+ {[%clk 0:00:01.8]} 122. Kxd8
{[%clk 0:00:12.2]} 122... Kg7 {[%clk 0:00:02.7]} 123. Ke8 {[%clk 0:00:13.1]}
123... Kg6 {[%clk 0:00:03.4]} 124. f8=Q {[%clk 0:00:14]} 124... Kh7 {[%clk
0:00:04.3]} 125. Qf3 {[%clk 0:00:13.6]} 125... Kg8 {[%clk 0:00:04.3]} 126. Qg3+
{[%clk 0:00:13.2]} 126... Kh8 {[%clk 0:00:05.2]} 127. Kf7 {[%clk 0:00:14.1]}
127... Kh7 {[%clk 0:00:06.1]} 128. Qg7# {[%clk 0:00:14]} 1-0

[Event "*** SCC Grand Prix: Titled Tuesday Blitz"]
[Site "Chess.com"]
[Date "2020.09.29"]
[Round "9"]
[White "DishonorOnYourCow"]
[Black "MashaFromRussia"]
[Result "1/2-1/2"]
[WhiteElo "2408"]
[BlackElo "2414"]
[TimeControl "180+1"]
[EndTime "11:48:14 PDT"]
[Termination "Game drawn - insufficient material"]

1. d4 {[%clk 0:03:00.9]} 1... Nf6 {[%clk 0:02:58.7]} 2. c4 {[%clk 0:03:00.5]}
2... g6 {[%clk 0:02:59]} 3. Nc3 {[%clk 0:02:58.5]} 3... Bg7 {[%clk 0:02:59.6]}
4. e4 {[%clk 0:02:57.8]} 4... d6 {[%clk 0:03:00]} 5. f4 {[%clk 0:02:57.7]} 5...
O-O {[%clk 0:03:00.1]} 6. Nf3 {[%clk 0:02:58.2]} 6... c5 {[%clk 0:03:00.7]} 7.
d5 {[%clk 0:02:58.4]} 7... e6 {[%clk 0:03:01]} 8. dxe6 {[%clk 0:02:59.3]} 8...
Bxe6 {[%clk 0:02:58.6]} 9. Bd3 {[%clk 0:03:00.2]} 9... Nc6 {[%clk 0:02:58.1]}
10. f5 {[%clk 0:03:00.4]} 10... Bd7 {[%clk 0:02:56.3]} 11. O-O {[%clk 0:03:00]}
11... Re8 {[%clk 0:02:56.8]} 12. fxg6 {[%clk 0:02:35.3]} 12... hxg6 {[%clk
0:02:57.7]} 13. Bg5 {[%clk 0:02:35.5]} 13... Qb6 {[%clk 0:02:42.8]} 14. Qd2
{[%clk 0:02:00.7]} 14... Bg4 {[%clk 0:02:29.6]} 15. h3 {[%clk 0:01:02.3]} 15...
Be6 {[%clk 0:02:16.1]} 16. Bh6 {[%clk 0:00:58.8]} 16... Nd4 {[%clk 0:02:10.8]}
17. Bxg7 {[%clk 0:00:28.5]} 17... Kxg7 {[%clk 0:02:10.2]} 18. Qg5 {[%clk
0:00:28.9]} 18... Nh7 {[%clk 0:02:06.4]} 19. Qg3 {[%clk 0:00:27.3]} 19... Qxb2
{[%clk 0:02:05.2]} 20. Nxd4 {[%clk 0:00:26.4]} 20... Qxc3 {[%clk 0:01:59.8]} 21.
Nb5 {[%clk 0:00:20.2]} 21... Qe5 {[%clk 0:01:49.1]} 22. Qxe5+ {[%clk 0:00:16.3]}
22... dxe5 {[%clk 0:01:49.9]} 23. Nc7 {[%clk 0:00:17.1]} 23... Red8 {[%clk
0:01:50.2]} 24. Nxa8 {[%clk 0:00:17.3]} 24... Rxd3 {[%clk 0:01:50.7]} 25. Nc7
{[%clk 0:00:17.2]} 25... Bxc4 {[%clk 0:01:51.1]} 26. Rfc1 {[%clk 0:00:16.3]}
26... b5 {[%clk 0:01:51.5]} 27. a4 {[%clk 0:00:15.2]} 27... Rd7 {[%clk
0:01:13.7]} 28. Nxb5 {[%clk 0:00:13.1]} 28... Bd3 {[%clk 0:01:12.8]} 29. Rxc5
{[%clk 0:00:12.3]} 29... Bxe4 {[%clk 0:01:09.8]} 30. Rxe5 {[%clk 0:00:12.2]}
30... Nf6 {[%clk 0:01:10]} 31. Rc1 {[%clk 0:00:10.7]} 31... Rd2 {[%clk
0:01:09.4]} 32. Rc7 {[%clk 0:00:07.2]} 32... Rxg2+ {[%clk 0:01:08.4]} 33. Kf1
{[%clk 0:00:07.7]} 33... Ra2 {[%clk 0:01:00.8]} 34. Nd6 {[%clk 0:00:07.5]} 34...
Bg2+ {[%clk 0:00:32.8]} 35. Ke1 {[%clk 0:00:07]} 35... Nd5 {[%clk 0:00:25.8]}
36. Rxf7+ {[%clk 0:00:06]} 36... Kh6 {[%clk 0:00:23.9]} 37. Re2 {[%clk
0:00:06.4]} 37... Ra1+ {[%clk 0:00:20.5]} 38. Kf2 {[%clk 0:00:06.6]} 38... Bxh3
{[%clk 0:00:19.4]} 39. Rf8 {[%clk 0:00:06.1]} 39... Bg4 {[%clk 0:00:19.1]} 40.
Re5 {[%clk 0:00:05.3]} 40... Kg7 {[%clk 0:00:16.5]} 41. Ra8 {[%clk 0:00:04.2]}
41... Ra2+ {[%clk 0:00:15.8]} 42. Kg3 {[%clk 0:00:03.3]} 42... Nf6 {[%clk
0:00:11.5]} 43. Rxa7+ {[%clk 0:00:03.2]} 43... Kh6 {[%clk 0:00:10]} 44. Nf7+
{[%clk 0:00:03.2]} 44... Kg7 {[%clk 0:00:09.2]} 45. Ng5+ {[%clk 0:00:02.7]}
45... Kh6 {[%clk 0:00:08.4]} 46. Nf7+ {[%clk 0:00:01.3]} 46... Kg7 {[%clk
0:00:08.6]} 47. Nd8+ {[%clk 0:00:02.2]} 47... Kh6 {[%clk 0:00:07.6]} 48. Ra6
{[%clk 0:00:01.4]} 48... Ra3+ {[%clk 0:00:06.9]} 49. Kg2 {[%clk 0:00:01.4]}
49... Bf3+ {[%clk 0:00:06]} 50. Kg1 {[%clk 0:00:01.9]} 50... Nh5 {[%clk
0:00:06.9]} 51. Ree6 {[%clk 0:00:02.2]} 51... Ng3 {[%clk 0:00:06.9]} 52. Rf6
{[%clk 0:00:03.1]} 52... Kh5 {[%clk 0:00:07.7]} 53. Kf2 {[%clk 0:00:03.5]} 53...
Bg4 {[%clk 0:00:06.6]} 54. Kg1 {[%clk 0:00:03]} 54... Ra1+ {[%clk 0:00:06.6]}
55. Kg2 {[%clk 0:00:02.9]} 55... Ne4 {[%clk 0:00:07.5]} 56. Nf7 {[%clk
0:00:03.3]} 56... Ra2+ {[%clk 0:00:07.8]} 57. Kf1 {[%clk 0:00:02.9]} 57... Nxf6
{[%clk 0:00:07.6]} 58. Rxf6 {[%clk 0:00:03.8]} 58... Rxa4 {[%clk 0:00:07.5]} 59.
Nh8 {[%clk 0:00:04]} 59... Ra1+ {[%clk 0:00:06.6]} 60. Kf2 {[%clk 0:00:03.7]}
60... g5 {[%clk 0:00:07.1]} 61. Nf7 {[%clk 0:00:04]} 61... Ra2+ {[%clk
0:00:07.3]} 62. Kg3 {[%clk 0:00:04.1]} 62... Ra3+ {[%clk 0:00:06.8]} 63. Kf2
{[%clk 0:00:04.2]} 63... Bd7 {[%clk 0:00:06.8]} 64. Rh6+ {[%clk 0:00:03.9]}
64... Kg4 {[%clk 0:00:07.4]} 65. Ne5+ {[%clk 0:00:04.6]} 65... Kf5 {[%clk
0:00:08]} 66. Nxd7 {[%clk 0:00:05.5]} 66... g4 {[%clk 0:00:08.2]} 67. Nc5 {[%clk
0:00:05.2]} 67... Ra2+ {[%clk 0:00:08]} 68. Kg3 {[%clk 0:00:05.1]} 68... Ra3+
{[%clk 0:00:08.4]} 69. Kg2 {[%clk 0:00:05.6]} 69... Kf4 {[%clk 0:00:08.6]} 70.
Ne6+ {[%clk 0:00:04.7]} 70... Ke5 {[%clk 0:00:08.5]} 71. Nc5 {[%clk 0:00:04.6]}
71... Kf4 {[%clk 0:00:08.5]} 72. Rf6+ {[%clk 0:00:04.7]} 72... Ke5 {[%clk
0:00:08.3]} 73. Rf2 {[%clk 0:00:05.2]} 73... Rc3 {[%clk 0:00:07.3]} 74. Nd7+
{[%clk 0:00:05.3]} 74... Ke6 {[%clk 0:00:06.5]} 75. Nf6 {[%clk 0:00:06.2]} 75...
g3 {[%clk 0:00:05.8]} 76. Rf1 {[%clk 0:00:06.5]} 76... Ra3 {[%clk 0:00:04.1]}
77. Nh5 {[%clk 0:00:06.6]} 77... Ke5 {[%clk 0:00:04]} 78. Nxg3 {[%clk
0:00:06.9]} 78... Ke6 {[%clk 0:00:04.5]} 79. Re1+ {[%clk 0:00:07.2]} 79... Kd5
{[%clk 0:00:05.1]} 80. Kf2 {[%clk 0:00:07.7]} 80... Ra2+ {[%clk 0:00:05.1]} 81.
Kf3 {[%clk 0:00:07.2]} 81... Ra3+ {[%clk 0:00:05.7]} 82. Kf4 {[%clk 0:00:07.7]}
82... Ra4+ {[%clk 0:00:06.2]} 83. Kf5 {[%clk 0:00:08.2]} 83... Ra8 {[%clk
0:00:06.1]} 84. Rd1+ {[%clk 0:00:08.4]} 84... Kc4 {[%clk 0:00:06.4]} 85. Ne4
{[%clk 0:00:08.8]} 85... Rf8+ {[%clk 0:00:06.4]} 86. Ke5 {[%clk 0:00:09.3]}
86... Re8+ {[%clk 0:00:06.6]} 87. Kf4 {[%clk 0:00:09.5]} 87... Rf8+ {[%clk
0:00:07.2]} 88. Ke3 {[%clk 0:00:10.3]} 88... Ra8 {[%clk 0:00:06.9]} 89. Rc1+
{[%clk 0:00:10.5]} 89... Kd5 {[%clk 0:00:07.5]} 90. Rc5+ {[%clk 0:00:09.7]}
90... Ke6 {[%clk 0:00:07.2]} 91. Kf4 {[%clk 0:00:10.2]} 91... Rf8+ {[%clk
0:00:07.2]} 92. Ke3 {[%clk 0:00:09.7]} 92... Ra8 {[%clk 0:00:07.8]} 93. Rc6+
{[%clk 0:00:09.8]} 93... Kd5 {[%clk 0:00:08.1]} 94. Rd6+ {[%clk 0:00:09.5]}
94... Ke5 {[%clk 0:00:08.6]} 95. Rd3 {[%clk 0:00:09.1]} 95... Ra1 {[%clk
0:00:08.5]} 96. Nd2 {[%clk 0:00:09.2]} 96... Re1+ {[%clk 0:00:07.7]} 97. Kf2
{[%clk 0:00:09.3]} 97... Ra1 {[%clk 0:00:08.2]} 98. Ke2 {[%clk 0:00:09.3]} 98...
Ra8 {[%clk 0:00:07.4]} 99. Ke3 {[%clk 0:00:09.5]} 99... Rh8 {[%clk 0:00:06.6]}
100. Nf3+ {[%clk 0:00:10.4]} 100... Ke6 {[%clk 0:00:06.2]} 101. Rd4 {[%clk
0:00:10.6]} 101... Rh1 {[%clk 0:00:05.5]} 102. Kf4 {[%clk 0:00:10.7]} 102... Rh8
{[%clk 0:00:05.2]} 103. Ng5+ {[%clk 0:00:10.8]} 103... Ke7 {[%clk 0:00:05.5]}
104. Re4+ {[%clk 0:00:09.9]} 104... Kf6 {[%clk 0:00:05.1]} 105. Nf3 {[%clk
0:00:08.9]} 105... Ra8 {[%clk 0:00:03.7]} 106. Rb4 {[%clk 0:00:08.5]} 106... Rc8
{[%clk 0:00:03.6]} 107. Rb6+ {[%clk 0:00:08.5]} 107... Kf7 {[%clk 0:00:03.5]}
108. Kf5 {[%clk 0:00:08.1]} 108... Rc5+ {[%clk 0:00:02.5]} 109. Ne5+ {[%clk
0:00:08.4]} 109... Ke7 {[%clk 0:00:03.1]} 110. Rb7+ {[%clk 0:00:07.4]} 110...
Kd8 {[%clk 0:00:03.2]} 111. Ke6 {[%clk 0:00:05.8]} 111... Ra5 {[%clk 0:00:02.2]}
112. Kd6 {[%clk 0:00:05]} 112... Ra6+ {[%clk 0:00:01.8]} 113. Nc6+ {[%clk
0:00:04.6]} 113... Ke8 {[%clk 0:00:02.7]} 114. Rb8+ {[%clk 0:00:03.1]} 114...
Kf7 {[%clk 0:00:02.7]} 115. Rb7+ {[%clk 0:00:04]} 115... Kf6 {[%clk 0:00:02.9]}
116. Kd5 {[%clk 0:00:04.3]} 116... Ra1 {[%clk 0:00:01.9]} 117. Rb8 {[%clk
0:00:03.9]} 117... Kf5 {[%clk 0:00:02.8]} 118. Nd4+ {[%clk 0:00:03.7]} 118...
Kf4 {[%clk 0:00:02.6]} 119. Rf8+ {[%clk 0:00:03.6]} 119... Ke3 {[%clk
0:00:03.2]} 120. Ke5 {[%clk 0:00:03.6]} 120... Ra5+ {[%clk 0:00:02.3]} 121. Kd6
{[%clk 0:00:02.5]} 121... Kxd4 {[%clk 0:00:03.2]} 122. Re8 {[%clk 0:00:02.9]}
122... Ra6+ {[%clk 0:00:03.6]} 123. Ke7 {[%clk 0:00:03.3]} 123... Rh6 {[%clk
0:00:04.5]} 124. Kf7 {[%clk 0:00:04.2]} 124... Rh7+ {[%clk 0:00:04.5]} 125. Kg6
{[%clk 0:00:04.1]} 125... Rh1 {[%clk 0:00:05.4]} 126. Rd8+ {[%clk 0:00:04.4]}
126... Ke5 {[%clk 0:00:05.7]} 127. Re8+ {[%clk 0:00:04.8]} 127... Kd6 {[%clk
0:00:06]} 128. Rd8+ {[%clk 0:00:04.8]} 128... Ke7 {[%clk 0:00:06.4]} 129. Rd2
{[%clk 0:00:04.6]} 129... Rg1+ {[%clk 0:00:06.8]} 130. Kf5 {[%clk 0:00:05]}
130... Rf1+ {[%clk 0:00:07]} 131. Ke4 {[%clk 0:00:05.4]} 131... Re1+ {[%clk
0:00:07.6]} 132. Kd3 {[%clk 0:00:06.3]} 132... Rc1 {[%clk 0:00:07.7]} 133. Re2+
{[%clk 0:00:06.4]} 133... Kd7 {[%clk 0:00:07.9]} 134. Rc2 {[%clk 0:00:07.3]}
134... Rxc2 {[%clk 0:00:07.3]} 135. Kxc2 {[%clk 0:00:08.2]} 1/2-1/2

[Event "*** SCC Grand Prix: Titled Tuesday Blitz"]
[Site "Chess.com"]
[Date "2020.09.29"]
[Round "10"]
[White "salomez"]
[Black "Sergienko_Sergey"]
[Result "1/2-1/2"]
[WhiteElo "2245"]
[BlackElo "2344"]
[TimeControl "180+1"]
[EndTime "11:49:36 PDT"]
[Termination "Game drawn by agreement"]

1. e4 {[%clk 0:03:00.9]} 1... c5 {[%clk 0:02:58.8]} 2. Nf3 {[%clk 0:02:58]} 2...
a6 {[%clk 0:02:58.3]} 3. c3 {[%clk 0:02:57.4]} 3... e6 {[%clk 0:02:57.5]} 4. d4
{[%clk 0:02:55.2]} 4... d5 {[%clk 0:02:57.3]} 5. exd5 {[%clk 0:02:52.9]} 5...
exd5 {[%clk 0:02:57.1]} 6. Be2 {[%clk 0:02:50.5]} 6... Nf6 {[%clk 0:02:55.9]} 7.
O-O {[%clk 0:02:50.5]} 7... Be7 {[%clk 0:02:49.3]} 8. Bg5 {[%clk 0:02:49.5]}
8... c4 {[%clk 0:02:44]} 9. b3 {[%clk 0:02:47.6]} 9... cxb3 {[%clk 0:02:43.1]}
10. axb3 {[%clk 0:02:47.1]} 10... O-O {[%clk 0:02:42.8]} 11. Nbd2 {[%clk
0:02:46.3]} 1/2-1/2

[Event "*** SCC Grand Prix: Titled Tuesday Blitz"]
[Site "Chess.com"]
[Date "2020.09.29"]
[Round "10"]
[White "monalize"]
[Black "isainz"]
[Result "0-1"]
[WhiteElo "2270"]
[BlackElo "2055"]
[TimeControl "180+1"]
[EndTime "11:51:33 PDT"]
[Termination "isainz won by resignation"]

1. e4 {[%clk 0:03:00.9]} 1... c5 {[%clk 0:02:58]} 2. Nf3 {[%clk 0:02:58.7]} 2...
Nc6 {[%clk 0:02:57.6]} 3. d4 {[%clk 0:02:58.1]} 3... cxd4 {[%clk 0:02:57.8]} 4.
Nxd4 {[%clk 0:02:58.4]} 4... Nf6 {[%clk 0:02:57.1]} 5. Nc3 {[%clk 0:02:57.8]}
5... e5 {[%clk 0:02:53.2]} 6. Ndb5 {[%clk 0:02:56.9]} 6... d6 {[%clk 0:02:50.6]}
7. Bg5 {[%clk 0:02:54.6]} 7... a6 {[%clk 0:02:47.1]} 8. Bxf6 {[%clk 0:02:54.4]}
8... gxf6 {[%clk 0:02:46.1]} 9. Na3 {[%clk 0:02:55.3]} 9... b5 {[%clk
0:02:46.1]} 10. Nd5 {[%clk 0:02:54.7]} 10... f5 {[%clk 0:02:46.3]} 11. Bxb5
{[%clk 0:02:51.3]} 11... axb5 {[%clk 0:02:27.2]} 12. Nxb5 {[%clk 0:02:50.9]}
12... Ra5 {[%clk 0:02:24.5]} 13. Nbc7+ {[%clk 0:02:34.1]} 13... Kd7 {[%clk
0:02:23.7]} 14. Qh5 {[%clk 0:02:27.5]} 14... Rxd5 {[%clk 0:02:20.3]} 15. Nxd5
{[%clk 0:02:24.7]} 15... Ke8 {[%clk 0:02:13.7]} 16. exf5 {[%clk 0:02:10.1]}
16... Qa5+ {[%clk 0:02:10.1]} 17. c3 {[%clk 0:02:08.9]} 17... Qxd5 {[%clk
0:02:07.6]} 18. O-O {[%clk 0:02:08.5]} 18... Qe4 {[%clk 0:01:51.8]} 19. a4
{[%clk 0:02:02.7]} 19... Qxf5 {[%clk 0:01:50.9]} 20. Qf3 {[%clk 0:02:00.5]}
20... Qxf3 {[%clk 0:01:48.8]} 0-1

[Event "*** SCC Grand Prix: Titled Tuesday Blitz"]
[Site "Chess.com"]
[Date "2020.09.29"]
[Round "10"]
[White "BanjoKazooieN64"]
[Black "Jadeit90"]
[Result "1-0"]
[WhiteElo "2488"]
[BlackElo "2338"]
[TimeControl "180+1"]
[EndTime "11:51:52 PDT"]
[Termination "BanjoKazooieN64 won by checkmate"]

1. e4 {[%clk 0:03:00.9]} 1... c5 {[%clk 0:02:56.2]} 2. Nc3 {[%clk 0:03:00.1]}
2... Nc6 {[%clk 0:02:56.3]} 3. Nf3 {[%clk 0:02:59.9]} 3... g6 {[%clk 0:02:56.8]}
4. Bb5 {[%clk 0:02:59.9]} 4... Bg7 {[%clk 0:02:57.3]} 5. O-O {[%clk 0:02:58.6]}
5... a6 {[%clk 0:02:54.9]} 6. Bxc6 {[%clk 0:02:54.9]} 6... dxc6 {[%clk
0:02:55.8]} 7. Re1 {[%clk 0:02:47.7]} 7... e5 {[%clk 0:02:55.5]} 8. d3 {[%clk
0:02:47.4]} 8... h6 {[%clk 0:02:54.4]} 9. b3 {[%clk 0:02:47.7]} 9... b6 {[%clk
0:02:53.8]} 10. a4 {[%clk 0:02:48]} 10... a5 {[%clk 0:02:54.1]} 11. Nd2 {[%clk
0:02:45.8]} 11... Ne7 {[%clk 0:02:53.8]} 12. Nc4 {[%clk 0:02:46]} 12... O-O
{[%clk 0:02:53.5]} 13. Bd2 {[%clk 0:02:40.8]} 13... g5 {[%clk 0:02:53.4]} 14.
Qh5 {[%clk 0:02:38.2]} 14... Ng6 {[%clk 0:02:53.4]} 15. g3 {[%clk 0:02:37.2]}
15... Be6 {[%clk 0:02:51.3]} 16. Ne3 {[%clk 0:02:37]} 16... Qd7 {[%clk
0:02:51.2]} 17. Rf1 {[%clk 0:02:32]} 17... Nf4 {[%clk 0:02:40.1]} 18. gxf4
{[%clk 0:02:30.9]} 18... exf4 {[%clk 0:02:39]} 19. Nf5 {[%clk 0:02:28.9]} 19...
Bxf5 {[%clk 0:02:38.4]} 20. exf5 {[%clk 0:02:29.4]} 20... Qxf5 {[%clk
0:02:39.3]} 21. Rae1 {[%clk 0:02:26.9]} 21... Rae8 {[%clk 0:02:36.5]} 22. Rxe8
{[%clk 0:02:26.5]} 22... Rxe8 {[%clk 0:02:36.5]} 23. Re1 {[%clk 0:02:26.7]}
23... Rxe1+ {[%clk 0:02:36.3]} 24. Bxe1 {[%clk 0:02:27.6]} 24... Qe6 {[%clk
0:02:32]} 25. Bd2 {[%clk 0:02:24.9]} 25... g4 {[%clk 0:02:30.3]} 26. f3 {[%clk
0:02:12.4]} 26... Bxc3 {[%clk 0:02:20.7]} 27. Bxc3 {[%clk 0:02:12.6]} 27... Qe3+
{[%clk 0:02:20.9]} 28. Kf1 {[%clk 0:02:12.3]} 28... Qxf3+ {[%clk 0:02:21.2]} 29.
Ke1 {[%clk 0:02:11.7]} 29... Qh1+ {[%clk 0:02:14.2]} 30. Kd2 {[%clk 0:02:06.1]}
30... Qg2+ {[%clk 0:02:11.2]} 31. Kc1 {[%clk 0:02:05.8]} 31... g3 {[%clk
0:02:07.4]} 32. Qxh6 {[%clk 0:02:01.7]} 32... gxh2 {[%clk 0:02:01.4]} 33. Qh8#
{[%clk 0:02:01.4]} 1-0